Cogmind - Beta 15 @@@ ROGUE MODE // 2025.06.07 @ 13:57:12 Player: morimori Result: Destroyed by SG-7KA(R) with Subdweller Machine Gun Performance ------------- Evolutions (0) 0 Regions Visited (1) 200 Robots Destroyed (21) 105 Value Destroyed (470) 470 Prototype IDs (0) 0 Alien Tech Used (0) 0 Bonus (0) 0 TOTAL SCORE: 775 Bonus ------- None Cogmind --------- Core Integrity 0/250 Matter 300/300 Energy 39/250 System Corruption 0% Temperature Cool (0) Movement Rolling (100) Location -10/Materials Parts ------- > --- POWER (1) -------- Ion Engine > --- PROPULSION (2) --- Compact Wheel Compact Wheel > --- UTILITY (2) ------ Heat Sink Medium Storage Unit > --- WEAPON (2) ------- Medium Laser Small Laser > --- INVENTORY (10) --- Hover Unit Hover Unit Hover Unit Heat Sink Hacking Suite Hacking Suite Small Laser Peak State ------------ > --- POWER ------------ Ion Engine > --- PROPULSION ------- Wheel Compact Wheel > --- UTILITY ---------- Heat Sink Small Storage Unit > --- WEAPON ----------- Small Laser Small Laser > --- INVENTORY -------- Ion Engine Light Ion Engine Wheel Compact Wheel Hover Unit Heat Sink Hacking Suite Beam Cannon [Rating: 8] Favorites ----------- Power Ion Engine Engine Ion Engine Propulsion Wheel Wheel Wheel Utility Small Storage Unit Device Heat Sink Storage Small Storage Unit Weapon Small Laser Energy Gun Small Laser Ballistic Gun Light Assault Rifle Build | -11 -10 ------- Run | Yrd Mat Slots Evolved . | . . Power . | . . Propulsion . | . . Utility . | . . Weapon . | . . Parts Attached 23 | 6 17 Power 3 | 1 2 Engine 3 | 1 2 Core . | . . Reactor . | . . Propulsion 7 | 2 5 Treads . | . . Leg . | . . Wheel 7 | 2 5 Hover . | . . Flight . | . . Utility 6 | 1 5 Device 4 | . 4 Storage 2 | 1 1 Processor . | . . Hackware . | . . Protection . | . . Artifact . | . . Weapon 7 | 2 5 Energy Gun 6 | 2 4 Energy Cannon . | . . Ballistic Gun 1 | . 1 Ballistic Cannon . | . . Launcher . | . . Special Weapon . | . . Impact Weapon . | . . Slashing Weapon . | . . Piercing Weapon . | . . Special Melee Weapon . | . . Unidentified Prototypes . | . . Parts Lost 9 | . 9 Power 2 | . 2 Propulsion 3 | . 3 Utility 1 | . 1 Weapon 3 | . 3 Highest Loss Streak 6 | . 6 To Critical Strikes . | . . Average Backups 6 | 2 6 Power 1 | 1 1 Propulsion 2 | . 2 Utility 1 | . 1 Weapon 1 | . 1 Tool/Special . | . . Unused Backups 9 | . 9 Power 3 | . 3 Propulsion 4 | . 4 Utility 1 | . 1 Weapon 1 | . 1 Tool/Special . | . . Average Slot Usage (%) 93 | . 93 Engine 13 | . 13 Wheel 27 | . 27 Device 9 | . 9 Storage 14 | . 14 Energy Gun 26 | . 26 Ballistic Gun 1 | . 1 Peak Build Rating 8 | 6 8 Average Rating 6 | 5 7 On Entrance 3 | . 6 Naked Turns . | . . Heaviest Build 18 | 13 18 Greatest Support 26 | 26 26 Greatest Overweight (x) 2 | 2 . Average Overweight (x) . | . . Largest Inventory Capacity 10 | 8 10 Average Capacity 8 | 7 8 Most Carried 10 | 6 10 Average Carried 6 | 2 6 Final Capacity 10 | 8 10 Final Carried 7 | 5 7 Class Distribution -------------------- 60% | Scavenger-Mutant 39% | Mutant Dominant Class ---------------- Scavenger-Mutant | -10/Materials Resources | -11 -10 ----------- Run | Yrd Mat Matter Collected 438 | 260 178 Remotely . | . . Salvage Created 820 | 125 695 Parts 39 | 5 34 Haulers Intercepted . | . . Recyclers Shooed 1 | . 1 Parts Field Recycled . | . . Retrieved Matter . | . . Parts Self-Destructed . | . . Prevented . | . . Kills | -11 -10 ------- Run | Yrd Mat Combat Hostiles Destroyed 12 | . 12 Guns 12 | . 12 Classes Destroyed 7 | 2 5 Tunneler 2 | 2 . Recycler 3 | 1 2 Operator 2 | . 2 Watcher 2 | . 2 Swarmer 3 | . 3 Grunt 7 | . 7 Subdweller 2 | . 2 Best Kill Streak 4 | 2 4 Combat Bots Only 4 | . 4 Max Kills in Single Turn 2 | 1 2 Gunslinging 1 | . 1 Exploded . | . . Melee . | . . Uniques/NPCs Destroyed . | . . Combat | -11 -10 -------- Run | Yrd Mat Hostile Shots Fired 85 | . 85 Missed 11 | . 11 Hits 74 | . 74 Projectile 74 | . 74 Critical Strikes 1 | . 1 Damage Taken 982 | . 982 Core 260 | . 260 Absorbed by Shields . | . . Core Remaining (%) 100 | 100 . Volleys Fired 73 | 5 68 Largest 2 | 2 2 Hottest 90 | 90 90 Shots Fired 141 | 10 131 Gun 141 | 10 131 Cannon . | . . Launcher . | . . Special . | . . Kinetic 8 | . 8 Thermal 133 | 10 123 Explosive . | . . Electromagnetic . | . . Robot Hit Streak 16 | 9 16 Robot Miss Streak 5 | . 5 Penetration Max . | . . Secondary Targets 2 | . 2 Max Gunslinging Chain 1 | . 1 Shots Hit Robots 99 | 9 90 Core Hits 41 | 4 37 Critical Kills . | . . Critical Parts Destroyed . | . . Critical Strikes 4 | 3 1 Burn 4 | 3 1 Melee Attacks . | . . Impact . | . . Slashing . | . . Piercing . | . . Sneak Attacks . | . . Combat Hostiles . | . . Follow-up Attacks . | . . Damage Inflicted 1104 | 108 996 Guns 1098 | 108 990 Cannons . | . . Explosions . | . . Melee . | . . Ramming 6 | . 6 Kinetic 54 | . 54 Thermal 1044 | 108 936 Explosive . | . . Electromagnetic . | . . Impact . | . . Slashing . | . . Piercing . | . . Highest Corruption . | . . Average Corruption . | . . Corruption Purged . | . . Corruption Blocked . | . . Overload Shots . | . . Overflow Damage . | . . Projectiles . | . . Explosions . | . . Melee . | . . Knockbacks . | . . Impact . | . . Kinetic . | . . Secondary . | . . Self-Inflicted Damage 3 | . 3 Shots . | . . Rammed 1 | . 1 Targets Rammed 1 | . 1 Kicked . | . . Crushed . | . . Highest Temperature 322 | 60 322 Average Temperature 97 | 30 108 Received Heat Transfer 417 | . 417 Effects 1 | . 1 Interference 1 | . 1 Siege Activations . | . . Martial Activations . | . . Shielding Activations . | . . Robots Disrupted . | . . Combat Hostiles . | . . Robots Corrupted . | . . Combat Hostiles . | . . Parts Fried . | . . Impact Corruptions . | . . Robots Melted . | . . Combat Hostiles . | . . Parts Melted 8 | 3 5 Heat Transferred 2825 | 507 2318 Parts Sabotaged . | . . Parts Stolen . | . . Parts Stripped . | . . Power Chain Reactions . | . . Alert | -11 -10 ------- Run | Yrd Mat Maximum Alert Level . | . . Low Security (%) 100 | 100 100 Level 1 . | . . Level 2 . | . . Level 3 . | . . Level 4 . | . . Level 5 . | . . High Security . | . . Max Security . | . . Peak Influence 76 | 10 76 Initial . | . . Average 19 | 1 21 Influence Increases 320 | 15 305 Destroy 0b10 Robot/C 200 | . 200 Destroy 0b10 Robot/NC 45 | 15 30 Destroy Leader 44 | . 44 Successful Hack 16 | . 16 Partial Spotted 15 | . 15 Influence Decreases 317 | 15 302 Time Decay 227 | 15 212 Lost Part 90 | . 90 Squads Dispatched 1 | . 1 Investigation . | . . Extermination . | . . Reinforcement 1 | . 1 Assault . | . . Garrison . | . . Intercept . | . . Searches Triggered . | . . Construction Impeded . | . . Haulers Reinforced . | . . Active Scanning Responses . | . . Cargo Convoy Interrupts . | . . Stealth | -11 -10 --------- Run | Yrd Mat Distress Signals 1 | . 1 Communications Jammed . | . . Distress Signals . | . . Times Spotted 27 | . 27 Peak Tracking Total 8 | . 8 Tactical Retreats 1 | . 1 Traps | -11 -10 ------- Run | Yrd Mat Traps Triggered . | . . Indirectly . | . . Trap Hack Attempts . | . . Triggered . | . . Disarmed . | . . Reprogrammed . | . . Reused . | . . Traps Extracted . | . . Installed . | . . Triggered . | . . Machines | -11 -10 ---------- Run | Yrd Mat Machines Disabled . | . . Max in Single Turn . | . . Machines Repaired . | . . Machines Dismantled . | . . Machines Sabotaged . | . . Overloaded Fab Kills . | . . Hacking | -11 -10 --------- Run | Yrd Mat Machines Accessed 4 | . 4 Terminals 3 | . 3 Fabricators . | . . Repair Stations . | . . Recycling Units 1 | . 1 Scanalyzers . | . . Garrison Access . | . . Total Hacks 13 | . 13 Successful 6 | . 6 Failed 7 | . 7 Catastrophic 1 | . 1 Database Lockouts . | . . Manual 13 | . 13 Terminals 12 | . 12 Fabricators . | . . Repair Stations . | . . Recycling Units 1 | . 1 Scanalyzers . | . . Garrison Access . | . . Terminal Hacks 2 | . 2 Part Schematic 1 | . 1 Terminal Index 1 | . 1 Fabricator Hacks . | . . Repair Station Hacks . | . . Recycling Unit Hacks 1 | . 1 Retrieve Components 1 | . 1 Scanalyzer . | . . Garrison Access Hacks . | . . Unauthorized Hacks 3 | . 3 Terminals 3 | . 3 Botnet 2 | . 2 Operators 1 | . 1 Fabricators . | . . Repair Stations . | . . Recycling Units . | . . Scanalyzers . | . . Garrison Access . | . . Data Cores Recovered . | . . Used . | . . Hacking Detections 3 | . 3 Full Trace Events 1 | . 1 Feedback Events . | . . Feedback Blocked . | . . Robot Schematics Acquired . | . . Robots Built . | . . Authchips . | . . Time . | . . Total Robot Build Rating . | . . Part Schematics Acquired 1 | . 1 Parts Built . | . . Authchips . | . . Time . | . . Total Part Build Rating . | . . Parts Repaired . | . . Time . | . . Parts Recycled . | . . Recycled Matter . | . . Retrieved Matter . | . . Retrieved Components 2 | . 2 Parts Scanalyzed . | . . Part Schematics Acquired . | . . Parts Damaged . | . . Bothacking | -11 -10 ------------ Run | Yrd Mat Used RIF Installer . | . . Robots Hacked . | . . Non-combat . | . . Combat . | . . Robot Hacks Applied . | . . Relay Couplers Released . | . . Fabnet Peak Effective % . | . . Robots Rewired . | . . Allies Hacked . | . . Hacks Repelled . | . . Allies | -11 -10 -------- Run | Yrd Mat Total Allies . | . . Largest Group . | . . Highest-Rated Group . | . . Highest-Rated Ally . | . . Total Orders . | . . Ally Attacks . | . . Total Damage . | . . Kills . | . . Allies Corrupted . | . . Allies Melted . | . . Intel | -11 -10 ------- Run | Yrd Mat Active Infowar (turns) . | . . Robot Analysis Total . | . . Derelict Logs Recovered . | . . Drone Launches . | . . Drone Recoveries . | . . Exploration | -11 -10 ------------- Run | Yrd Mat Turns Passed 822 | 87 735 Spaces Moved 526 | 55 471 Core 4 | 4 . Treads . | . . Legs . | . . Wheels 522 | 51 471 Hover . | . . Flight . | . . Fastest Speed 50 | 50 80 Average Speed 89 | 90 89 Slowest Speed 150 | 150 100 Overloaded Moves . | . . Propulsion Burnouts . | . . Robots Hopped . | . . Potential Cave-ins . | . . Cave-ins Triggered . | . . Exploration Rate (%) 34 | 3 66 Regions Visited 1 Branch Regions . Pre-discovered Areas . | . . Known Exits Taken . | . . Unknown Exits Taken 1 | 1 . Scrap Searched . | . . Spaces Dug . | . . Terrain Destroyed . | . . Melee . | . . Projectile . | . . AOE . | . . Terrain Rammed . | . . Walls Destroyed . | . . Machines Disabled . | . . Actions | -11 -10 --------- Run | Yrd Mat Total 736 | 79 657 Wait 83 | 7 76 Move 525 | 54 471 Hop . | . . Pick Up 18 | 6 12 Fast Attach 9 | 6 3 Attach 7 | . 7 Detach . | . . Swap 9 | . 9 Drop 11 | 1 10 Fire 73 | 5 68 Melee . | . . Ram 1 | . 1 Kick . | . . Crush . | . . Escape Stasis . | . . Rewire . | . . Trap . | . . Miscellaneous . | . . Route ------- -11/Scrapyard -10/Materials (discovered 4 exits: [*Mat x2] / [*Min x2]) History --------- Turn | Location | Event 24 | -11/Scrapyard | Discovered new exit (range 15) 88 | -11/Scrapyard | Entered Materials 99 | -10/Materials | Discovered new exit (range 16) 206 | -10/Materials | Discovered new exit (range 15) 308 | -10/Materials | Build established: Mutant 346 | -10/Materials | Core integrity fell below 50% 372 | -10/Materials | Lost 6 parts (1p2n3w) 530 | -10/Materials | Discovered new exit (range 11) 594 | -10/Materials | Discovered new exit (range 16) 625 | -10/Materials | Build established: Scavenger-Mutant 688 | -10/Materials | Derelicts attacked the area 801 | -10/Materials | Core integrity fell below 20% 823 | -10/Materials | Destroyed by SG-7KA(R) with Subdweller Machine Gun Last Messages --------------- 00778_ K-01 Serf collects debris. 00783_ Disposable Heat Sink melted. 00783_ 68-QYX(R) destroyed. 00785_ K-01 Serf collects debris. 00788_ Dropped Beam Cannon. 00791_ Acquired Hacking Suite. 00793_ K-01 Serf destroyed. 00807_ K-01 Serf collects debris. 00808_ Acquired 10 matter. 00811_ K-01 Serf collects debris. 00815_ Ion Engine destroyed. 00817_ Sub. Optics melted. 00817_ Sub. Power Source melted. 00817_ 2P-YOY(R) destroyed. 00819_ Wheel destroyed. 00819_ K-01 Serf collects debris. 00821_ Acquired 10 matter. 00821_ Heat Sink destroyed. 00822_ Acquired 5 matter. 00823_ Acquired 10 matter. Map ----- +----------------------------------------------------+ | | | | | | | | | ??????????????????????????????????? | | ??????????????????????????????????? | | ??????????????????????????????????? | | ??????????????????????????????????? | | ??????????????????????????????????? | | ??????????????????????????????????? | | ??????????????????????????????????? | | ??????????????????????????????????? | | ??????????????????????????????????? | | ??????????????????????????????????? | | ??????????????????????????????????? | | ????????????????????#######???????? | | ????????????????????# #???????? | | ????????????????????# """ #???????? | | ????????????????????# """ #???????? | | ????????????????????# """ #???????? | | ????????????????????# ######??? | | ????????????????????# """ # #??? | | ????????????????????# """&#=< #??? | | ????????????????????# """k#[& ##?? | | ????????????????????# %=R%= "#?? | | ????????????????????# @#%! #??? | | ????????????????##### [#] #??? | | ????????????????#"""# #* #??? | | ????##+####+#####"T"#######% #??? | | ??? ^ [%! #??? | | ??? #??? | | ??? % #??? | | ??????????## """" #??? | | ???????????# !! """" #??? | | ???????????# !! """" #??? | | ???????????# !! #??? | | ???????????# #??? | | #??????????+ #??? | | "#?????????# #??? | | "??????????##### ![ #??? | | !??????????????# ! #??? | | ???????????????# ! ###? | | ???????????????# """" ""#? | | ???????????????# """" T"#? | | ???????????????# """" ""#? | | ???######??????# ###? | | ### #??????# ^ #??? | | #??????# #########+###??? | | #??????# #??????????????? | | """ #??????# #??????????????? | +----------------------------------------------------+ Best States ------------- Heat Dissipation 35 Energy Generation 10 Energy Capacity 250 Matter Stores 300 Matter Capacity 300 Sight Range 16 Terrain Scan Density 10 Evasion (%) 44 Item Schematics ----------------- Hcp. Storage Unit | -10/Materials | Hacked Robot Schematics ------------------ None Fabricated ------------ Nothing Repaired ---------- Nothing Alien Tech Used ----------------- None Achievements -------------- None Challenges ------------ None Game ------ Seed WarlordStormBlade Manual? 0 Play Time 00:08:11 Cumulative 399.9 hours Start 2025.06.07 @ 11:05:44 End 2025.06.07 @ 13:57:12 Sessions 1 Manual Loads 0 Difficulty Rogue Special Mode None Game No. 205 Rogue 205 Adventurer 0 Explorer 0 Win Type - Total 5 Types 5/0/0/0/0/0/0/0/0/0 Lore% 62 Gallery% 66 Achievement% 63 Wizard Run 0 Options --------- Layout 0 ASCII 0 Keyboard 1 Movement Vi Keybinds 0 Fullscreen 2 Font 18/SmallcapsGlow Map View 76x50 Zoom Use 0% Tactical HUD 1 Map Filters NONE Filters NONE Steam 1 RUN: f96f52fa-1706-4077-8215-dacb82c065c9